Workbook

Sheet Budget
A1: MUKTI Coaching budget for 2012-13
B3: Particulars | C3: No of Centers | D3: Total No. Teachers | E3: Monthly Cost | F3: No. of Months | G3: Calculated | H3: Total expenses (INR) | I3: Remarks
B5: Teacher Salaries | H5: =G8+G7+G6+G9 -> 709200
B6: Assistance Teacher Salary | C6: 8 | D6: 24 | E6: 49800 | F6: 12 | G6: =E6*F6 -> 597600
B7: Center assistant | D7: 2 | E7: 3500 | F7: 12 | G7: =E7*F7 -> 42000
B8: project Coordinator | D8: 1 | E8: 2700 | F8: 12 | G8: =E8*F8 -> 32400
B9: Project Advisor/ chief coordinator | D9: 1 | E9: 3100 | F9: 12 | G9: =E9*F9 -> 37200
G10: =E10*F10 -> 0
B11: Other Expenses | G11: =E11*F11 -> 0
B12: Material Purchase and Recuring Expenses | C12: 8 | E12: 800 | F12: 12 | G12: =C12*E12*F12 -> 76800 | H12: =G12 -> 76800
B13: Special coaching program for MP and HS student | C13: 2 | E13: 27400 | F13: 1 | G13: =E13*F13*C13 -> 54800 | H13: =G13 -> 54800
B14: Accounting and communication expenses (Including Travel, and Administrative) | C14: 0.06 | H14: 48000
B16: Furniture help to existing coahing centre | C16: 8 | E16: 3500 | F16: 1 | G16: =E16*F16*C16 -> 28000 | H16: =G16 -> 28000
B17: (In stead of rent we are providing it)
B19: continues student awarding | C19: 8 | E19: 2500 | G19: =E19*C19 -> 20000 | H19: =G19 -> 20000
B20: Gurdian/ parent awarness programme | C20: 8 | E20: 2000 | G20: =E20*C20 -> 16000 | H20: =G20 -> 16000
B21: Total Budet | H21: =SUM(H5:H20) -> 952800
C23: No of center | D23: Total student | E23: Per month | F23: No of Month | H23: Total Recovery
B24: MUKTI Recovery from Student Fees | C24: 8 | D24: 800 | E24: 15 | F24: 10 | G24: =-D24*E24*F24 -> -120000 | H24: 120000
B27: Total Funding Requested | H27: =H21-H24 -> 832800
F30: USD/Rs | G30: 49
F31: Total USD $ | G31: =H27/G30 -> 16995.91837

Sheet Teacher salary details
A1: Mukti Coaching programme Associates Salary for 2012-13
A2: Srl No | B2: Name of the Employee | C2: Designation | D2: Salary Per Month
A3: 1 | B3: ASHOK DAS | C3: Teacher | D3: 2200
A4: 2 | B4: DIPAK HALDAR | C4: Teacher | D4: 2200
A5: 3 | B5: HARISHADHAN MANDAL | C5: Teacher | D5: 2200
A6: 4 | B6: New recruitment | C6: Teacher | D6: 1550
A7: 5 | B7: BIPRADAS JATUA | C7: Teacher | D7: 2200
A8: 6 | B8: Animesh Bera | C8: Teacher | D8: 2700
A9: 7 | B9: Ratikanta MANNA | C9: Teacher | D9: 1850
A10: 8 | B10: RAMPRASAD GAYEN | C10: Teacher | D10: 2200
A11: 9 | B11: Mangal Biswas | C11: Teacher | D11: 1850
A12: 10 | B12: Rabin Halder | C12: Teacher | D12: 1750
A13: 11 | B13: Nimai midye | C13: Teacher | D13: 1950
A14: 12 | B14: Susanta Purkait | C14: Teacher | D14: 1950
A15: 13 | B15: Sumon Jana | C15: Teacher | D15: 2100
A16: 14 | B16: swarna Naskar | C16: Teacher | D16: 1850
A17: 15 | B17: Pintu Halder | C17: Teacher | D17: 1950
A18: 16 | B18: Satyaban Halder | C18: Teacher | D18: 2100
A19: 17 | B19: Bijoy Mondal | C19: Teacher | D19: 2100
A20: 18 | B20: Montu Mistry | C20: Teacher | D20: 2600
A21: 19 | B21: Madan Mohan Halder | C21: Teacher | D21: 1850
A22: 20 | B22: Palash Mondal | C22: Teacher | D22: 1950
A23: 21 | B23: Rajeswar Halder | C23: Teacher | D23: 1900
A24: 22 | B24: Ratan Kr Gaine | C24: Teacher | D24: 1550
A25: 23 | B25: Sima Purokait | C25: Teacher | D25: 1700
A26: 24 | B26: Pallabi Das | C26: Teacher | D26: 1550
A27: 25 | B27: Sridam Mandal | C27: Teacher Assistance | D27: 1750
A28: 26 | B28: Balaram Halder | C28: Teacher Assistance | D28: 1750
A29: 27 | B29: BIMAL KHAN | C29: Project Coordinator | D29: 2700
A30: 28 | B30: Subimal Guria | C30: Project Advisor | D30: 3100
C31: Total Permonth salary | D31: 59100
D49: 1
D50: 0
D51: 0

Sheet Center details
A1: Mukti Coaching Center Report 2012-13
A3: Sl. No. | B3: GP Name | C3: Name of center | D3: No .teach | E3: No. Students | F3: No. Girls | G3: No. Boys
A5: 1 | B5: Kankandighi | C5: South Kankandighi Free Primary School (Daktargheri) | D5: 3 | E5: 102 | F5: 54 | G5: 48
A6: 2 | C6: Jogendrapur Mukti Coaching Center | D6: 3 | E6: 142 | F6: 69 | G6: 73
A7: 3&4 | C7: Kankandighi Babujan Sipar H.S. Coaching Center | D7: 6 | E7: 302 | F7: 148 | G7: 154
A8: 5 | B8: Nagendrapur | C8: Purba Sridharpur Coaching Center | D8: 3 | E8: 98 | F8: 59 | G8: 39
A9: 6 | C9: Baradanagar | D9: 3 | E9: 101 | F9: 58 | G9: 43
A10: 7 | C10: Nagendrapur | D10: 3 | E10: 79 | F10: 44 | G10: 35
A11: 8 | C11: Damkal | D11: 3 | E11: 120 | F11: 64 | G11: 56
C12: Total | D12: =SUM(D5:D11) -> 24 | E12: =SUM(E5:E11) -> 944 | F12: =SUM(F5:F11) -> 496 | G12: =SUM(G5:G11) -> 448
